bitfinex/quotes_BTCUSD_20230110
["timestamp","ask_amount","ask_price","bid_price","bid_amount"]
[1673391794858,0.01656333,17423.0,17422.0,2.359779]
[1673391795643,0.55317934,17423.0,17422.0,1.742508]
[1673391795957,1.15317934,17423.0,17422.0,0.804986]
[1673391796207,1.15317934,17423.0,17422.0,0.031]
[1673391796459,1.26849727,17423.0,17422.0,0.031]
[1673391796716,1.15317934,17423.0,17422.0,0.031]
[1673391797030,1.15317934,17423.0,17420.0,1.43261619]
[1673391797265,0.6,17421.0,17420.0,1.43261619]
[1673391797779,0.6,17421.0,17420.0,0.774041]
[1673391798033,0.6,17421.0,17419.0,0.82391818]
[1673391798290,0.83767789,17421.0,17419.0,0.82391818]
[1673391798559,0.85167789,17421.0,17420.0,0.028]
[1673391798796,0.614,17421.0,17420.0,0.028]
[1673391799310,0.6754,17421.0,17420.0,0.028]
[1673391800071,1.22049493,17421.0,17420.0,0.028]
[1673391800318,1.20649493,17421.0,17419.0,0.24986318]
[1673391800573,1.25439493,17421.0,17419.0,0.24986318]
[1673391801075,1.26839493,17421.0,17419.0,0.24986318]
[1673391801577,1.28239493,17421.0,17419.0,0.27786318]
[1673391802087,1.28239493,17421.0,17419.0,2.36554335]
[1673391802088,1.17309493,17421.0,17419.0,2.36554335]
[1673391802596,1.17309493,17421.0,17420.0,0.359237]
[1673391802858,1.17309493,17421.0,17420.0,1.23398183]
[1673391803102,0.628,17421.0,17420.0,2.10803383]
[1673391803356,0.628,17421.0,17420.0,2.46727083]
[1673391803611,0.614,17421.0,17420.0,2.46727083]
[1673391803881,0.5999355,17421.0,17420.0,2.46727083]
[1673391804133,0.6139355,17421.0,17420.0,2.49527083]
[1673391804395,0.6139355,17421.0,17420.0,2.69527083]
[1673391808272,0.014,17421.0,17420.0,2.69527083]
[1673391809844,0.014,17421.0,17420.0,2.80507083]
[1673391810094,0.014,17421.0,17420.0,4.72561311]
[1673391810347,0.5999355,17424.0,17421.0,0.2]
[1673391810348,0.51649883,17424.0,17421.0,0.2]
[1673391810605,0.51649883,17424.0,17423.0,0.1093]
[1673391810606,0.50148883,17424.0,17423.0,0.1093]
[1673391810878,0.50148883,17424.0,17423.0,2.116374]
[1673391811672,0.50448883,17424.0,17423.0,2.116374]
[1673391811932,0.50148883,17424.0,17423.0,2.116374]
[1673391812702,0.50148883,17424.0,17423.0,2.67103907]
[1673391813211,0.57348883,17424.0,17423.0,2.67103907]
[1673391813461,0.50148883,17424.0,17423.0,2.67103907]
[1673391813723,0.51448883,17424.0,17423.0,2.71503907]
[1673391813978,1.28916126,17424.0,17423.0,1.391906]
[1673391814234,1.05148337,17424.0,17423.0,1.391906]
[1673391816020,0.95148337,17424.0,17423.0,1.391906]
[1673391818822,0.95148337,17424.0,17423.0,0.817953]
[1673391819164,1.12222827,17424.0,17423.0,0.817953]
[1673391819829,0.95148337,17424.0,17423.0,0.817953]
[1673391820090,1.12222827,17424.0,17423.0,0.817953]
[1673391820346,1.12222827,17424.0,17423.0,0.617953]
[1673391820612,0.199967,17422.0,17421.0,0.773993]
[1673391820896,0.96069283,17422.0,17421.0,0.773993]
[1673391821153,0.96069283,17422.0,17421.0,1.348012]
[1673391821154,0.199967,17422.0,17421.0,1.348012]
[1673391821410,0.60145583,17422.0,17421.0,1.348012]
[1673391822168,0.199967,17422.0,17421.0,1.348012]
[1673391822426,0.60145583,17422.0,17421.0,1.348012]
[1673391822685,0.60145583,17422.0,17421.0,1.648012]
[1673391822944,0.60145583,17422.0,17421.0,2.007249]
[1673391823247,0.61545583,17422.0,17421.0,2.011249]
[1673391824041,0.60145583,17422.0,17421.0,2.007249]
[1673391824322,0.61545583,17422.0,17421.0,2.011249]
[1673391824571,0.60145583,17422.0,17421.0,2.007249]
[1673391825068,0.60145583,17422.0,17421.0,1.711249]
[1673391825326,0.61545583,17422.0,17421.0,1.711249]
[1673391826618,0.61545583,17422.0,17421.0,2.011249]
[1673391827374,0.213967,17422.0,17421.0,2.93418697]
[1673391827679,0.213967,17422.0,17421.0,3.99536602]
[1673391827972,0.213967,17422.0,17421.0,4.57060461]
[1673391828204,0.213967,17422.0,17421.0,4.72690412]
[1673391828461,0.45164489,17422.0,17421.0,3.54554384]
[1673391828720,0.45164489,17422.0,17421.0,3.14738808]
[1673391828721,0.61545583,17422.0,17421.0,3.14738808]
[1673391828970,0.61545583,17422.0,17421.0,2.71917787]
[1673391831530,0.61545583,17422.0,17421.0,2.9767532]
[1673391832576,0.213967,17422.0,17421.0,2.9767532]
[1673391836932,0.213967,17422.0,17421.0,3.31911165]
[1673391837201,0.213967,17422.0,17421.0,2.9767532]
[1673391837731,0.213967,17422.0,17421.0,3.14738808]
[1673391837997,0.213967,17422.0,17421.0,3.42734384]
[1673391840658,0.213967,17422.0,17421.0,3.31754384]
[1673391841503,0.213967,17422.0,17421.0,2.97518539]
[1673391843017,0.213967,17422.0,17421.0,2.5474543]
[1673391844559,0.21389496,17422.0,17421.0,2.5474543]
[1673391845128,0.21389496,17422.0,17421.0,2.97716729]
[1673391845604,0.21389496,17422.0,17421.0,2.5474543]
[1673391847155,0.21389496,17422.0,17421.0,2.4271543]
[1673391847421,0.21389496,17422.0,17421.0,2.90063255]
[1673391848202,0.21389496,17422.0,17421.0,2.55684658]
[1673391848739,0.21389496,17422.0,17421.0,3.20062754]
[1673391848990,0.21389496,17422.0,17421.0,2.85684658]
[1673391849511,0.21389496,17422.0,17421.0,2.4271543]
[1673391850059,0.21389496,17422.0,17421.0,1.899449]
[1673391850534,0.00247366,17425.0,17421.0,4.5382129]
[1673391850536,0.00247366,17425.0,17421.0,5.08365214]
[1673391850807,0.00247366,17425.0,17424.0,0.71636678]
[1673391851061,0.00247366,17425.0,17424.0,2.97981013]
[1673391851346,0.00247366,17425.0,17424.0,4.46397524]
[1673391851590,0.00247366,17425.0,17424.0,5.17761733]
[1673391851842,0.00647366,17425.0,17424.0,4.59336187]
[1673391852615,0.00247366,17425.0,17424.0,4.59336187]
[1673391852930,0.00247366,17425.0,17424.0,4.93672937]
[1673391853169,0.00247366,17425.0,17424.0,6.61017885]
[1673391853170,0.00400366,17425.0,17424.0,6.61017885]
[1673391853703,0.00400366,17425.0,17424.0,6.09457387]
[1673391853969,0.00400366,17425.0,17424.0,7.19443431]
[1673391854247,0.00400366,17425.0,17424.0,7.82967885]
[1673391854494,0.00400366,17425.0,17424.0,7.12036565]
[1673391854752,0.00400366,17425.0,17424.0,6.60476067]
[1673391855002,3.66e-06,17425.0,17424.0,7.90871453]
[1673391855265,3.66e-06,17425.0,17424.0,8.42431951]
[1673391855536,3.66e-06,17425.0,17424.0,6.86482546]
[1673391855767,3.66e-06,17425.0,17424.0,6.34922048]
[1673391856013,3.66e-06,17425.0,17424.0,6.93347594]
[1673391856259,3.66e-06,17425.0,17424.0,6.90871453]
[1673391857006,3.66e-06,17425.0,17424.0,6.18898613]
[1673391857255,3.66e-06,17425.0,17424.0,6.61762417]
[1673391857513,3.66e-06,17425.0,17424.0,6.61760099]
[1673391859032,3.66e-06,17425.0,17424.0,6.9603955]
[1673391859272,3.66e-06,17425.0,17424.0,6.37614004]
[1673391859519,3.66e-06,17425.0,17424.0,6.03334553]
[1673391860049,3.66e-06,17425.0,17424.0,6.05810694]
[1673391860581,3.66e-06,17425.0,17424.0,6.2912087]
[1673391861066,3.66e-06,17425.0,17424.0,6.41899825]
[1673391861359,0.63917038,17425.0,17424.0,4.07254419]
[1673391861633,0.40149249,17425.0,17424.0,3.81548288]
[1673391862183,3.66e-06,17425.0,17424.0,3.81548288]
[1673391862439,3.66e-06,17425.0,17424.0,4.35950419]
[1673391862700,3.66e-06,17425.0,17424.0,5.43092703]
[1673391862956,3.66e-06,17425.0,17424.0,5.54072703]
[1673391863723,3.66e-06,17425.0,17424.0,5.71212843]
[1673391863974,3.66e-06,17425.0,17424.0,5.54072703]
[1673391864765,3.66e-06,17425.0,17424.0,5.71213107]
[1673391865018,3.66e-06,17425.0,17424.0,5.71213095]
[1673391865273,3.66e-06,17425.0,17424.0,4.18236919]
[1673391865558,3.66e-06,17425.0,17424.0,3.42981823]
[1673391866080,3.66e-06,17425.0,17424.0,3.17275692]
[1673391866330,0.9639887,17425.0,17424.0,0.338]
[1673391866584,1.47527753,17425.0,17424.0,0.338]
[1673391866850,0.51129249,17425.0,17424.0,0.37559789]
[1673391867092,0.40149249,17425.0,17424.0,0.94951889]
[1673391867339,0.40148883,17425.0,17424.0,0.573921]
[1673391867596,0.40448883,17425.0,17424.0,0.711921]
[1673391867839,0.40448883,17425.0,17424.0,1.211921]
[1673391868110,0.40748883,17425.0,17424.0,1.350921]
[1673391868607,0.99245476,17425.0,17424.0,1.350921]
[1673391868862,0.99245476,17425.0,17424.0,1.050921]
[1673391870113,0.99245476,17425.0,17424.0,0.850921]
[1673391870369,0.75486672,17425.0,17424.0,0.277]
[1673391870651,2.19642828,17425.0,17424.0,0.277]
[1673391871688,1.29922173,17425.0,17424.0,0.277]
[1673391872224,1.18942173,17425.0,17424.0,0.277]
[1673391873687,1.07972173,17425.0,17424.0,0.277]
[1673391874207,1.07972173,17425.0,17424.0,0.850921]
[1673391876252,0.6782329,17425.0,17424.0,0.850921]
[1673391876504,1.07972173,17425.0,17424.0,0.850921]
[1673391876993,1.07972173,17425.0,17424.0,0.69856635]
[1673391877743,1.07972173,17425.0,17424.0,0.12464535]
[1673391877993,1.61563684,17425.0,17424.0,0.12464535]
[1673391878264,1.43895873,17425.0,17424.0,0.12464535]
[1673391878762,0.6782329,17425.0,17424.0,0.12464535]
[1673391879538,1.07972173,17425.0,17424.0,0.12464535]
[1673391880282,1.41232285,17425.0,17424.0,0.12464535]
[1673391880534,1.52182285,17425.0,17424.0,0.12464535]
[1673391880792,2.08877268,17425.0,17424.0,0.12464535]
[1673391881030,1.52182285,17425.0,17424.0,0.12464535]
[1673391881281,1.52182285,17425.0,17422.0,0.573961]
[1673391881282,0.52936825,17424.0,17422.0,0.573961]
[1673391881536,1.51331797,17423.0,17421.0,0.04816809]
[1673391881794,0.2195,17422.0,17421.0,0.04816809]
[1673391882302,0.2195,17422.0,17421.0,0.574019]
[1673391882817,0.1097,17422.0,17421.0,0.574019]
[1673391883330,0.1307,17422.0,17421.0,0.874019]
[1673391883573,0.1097,17422.0,17421.0,0.574019]
[1673391883850,0.1307,17422.0,17421.0,0.574019]
[1673391884101,0.1097,17422.0,17421.0,0.574019]
[1673391884356,0.1337,17422.0,17421.0,0.574019]
[1673391885102,0.1337,17422.0,17421.0,2.0392645]
[1673391885103,0.024,17422.0,17421.0,2.0392645]
[1673391885363,0.024,17422.0,17421.0,2.46090361]
[1673391885899,0.024,17422.0,17421.0,2.69645806]
[1673391886119,0.024,17422.0,17421.0,2.66090361]
[1673391887372,0.024,17422.0,17421.0,2.69645806]
[1673391888105,0.024,17422.0,17421.0,2.66090361]
[1673391888345,0.42548883,17422.0,17421.0,2.66090361]
[1673391897339,0.42548883,17422.0,17421.0,2.83230753]
[1673391899572,0.42548883,17422.0,17421.0,2.83224302]
[1673391900772,0.42548883,17422.0,17421.0,3.08930433]
[1673391901803,0.024,17422.0,17421.0,3.88429006]
[1673391902053,0.024,17422.0,17421.0,4.4420452]
[1673391902315,0.26167789,17422.0,17421.0,3.8326038]
[1673391902571,0.024,17422.0,17421.0,4.00220924]
[1673391902824,0.024,17422.0,17421.0,3.65882536]
[1673391903085,0.024,17422.0,17421.0,3.2296038]
[1673391903624,0.024,17422.0,17421.0,3.19132774]
[1673391903884,0.024,17422.0,17421.0,3.7723828]
[1673391904156,0.024,17422.0,17421.0,4.61298069]
[1673391904421,0.00401709,17426.0,17421.0,4.87808313]
[1673391904680,0.00401709,17426.0,17425.0,1.20114112]
[1673391904933,0.00401709,17426.0,17425.0,3.99130462]
[1673391905190,0.00401709,17426.0,17425.0,2.98198628]
[1673391905714,0.01901709,17426.0,17425.0,2.8102561]
[1673391905978,0.93569031,17426.0,17425.0,2.5102561]
[1673391906236,0.82251242,17426.0,17425.0,1.506923]
[1673391906744,0.82251242,17426.0,17425.0,1.147776]
[1673391907002,0.80751242,17426.0,17425.0,1.147776]
[1673391907315,0.82251242,17426.0,17425.0,1.147776]
[1673391907561,0.80751242,17426.0,17425.0,1.147776]
[1673391907816,0.81651242,17426.0,17425.0,1.147776]
[1673391908050,0.81651242,17426.0,17425.0,0.573888]
[1673391908310,1.3346481,17426.0,17424.0,0.573908]
[1673391908572,0.51078883,17425.0,17424.0,0.573908]
[1673391910625,0.51078883,17425.0,17424.0,1.147829]
[1673391911397,0.63478883,17425.0,17424.0,1.147829]
[1673391915467,1.29689033,17425.0,17424.0,1.147829]
[1673391916734,1.29689033,17425.0,17423.0,0.77393]
[1673391916985,1.29689033,17425.0,17423.0,0.57393]
[1673391917740,1.17289033,17425.0,17423.0,0.57393]
[1673391917994,1.22389033,17425.0,17423.0,0.57393]
[1673391918504,0.59171267,17424.0,17423.0,0.57393]
[1673391919870,0.60071267,17424.0,17423.0,0.57393]
[1673391921954,0.60071267,17424.0,17422.0,1.79924524]
[1673391922179,0.60071267,17424.0,17422.0,1.79924924]
[1673391923248,0.40148883,17423.0,17422.0,1.79924924]
[1673391924449,0.41648883,17423.0,17422.0,2.15848624]
[1673391924962,0.41648883,17423.0,17422.0,1.79924924]
[1673391925758,0.41648883,17423.0,17422.0,2.15848624]
[1673391926779,0.41648883,17423.0,17422.0,1.79924924]
[1673391927251,0.41640247,17423.0,17422.0,1.79924924]
[1673391927502,0.015,17423.0,17422.0,1.79924924]
[1673391927763,0.41640247,17423.0,17422.0,2.15848624]
[1673391928255,0.41640247,17423.0,17422.0,1.79924924]
[1673391928749,0.41640247,17423.0,17422.0,2.15848624]
[1673391928992,0.41640247,17423.0,17422.0,2.63026527]
[1673391931533,0.41640247,17423.0,17422.0,2.33026527]
[1673391932287,0.41640247,17423.0,17422.0,2.33018783]
[1673391932542,0.015,17423.0,17422.0,2.33018783]
[1673391932804,0.41640247,17423.0,17422.0,2.63018783]
[1673391936369,0.41640247,17423.0,17422.0,2.8878539]
[1673391936621,0.41640247,17423.0,17422.0,2.63018783]
[1673391942617,0.41640247,17423.0,17422.0,2.8878539]
[1673391943317,0.41640247,17423.0,17422.0,2.63018783]
[1673391944825,0.41640247,17423.0,17422.0,2.33018783]
[1673391945050,0.41640247,17423.0,17422.0,2.5878539]
[1673391945307,0.41640247,17423.0,17422.0,2.8878539]
[1673391945561,0.015,17423.0,17422.0,3.23136311]
[1673391945811,0.41640247,17423.0,17422.0,3.23136311]
[1673391946036,0.41640247,17423.0,17422.0,3.05958408]
[1673391946329,0.41640247,17423.0,17422.0,2.88808388]
[1673391947523,0.41640247,17423.0,17422.0,3.05958408]
[1673391950520,0.41640247,17423.0,17422.0,2.88811993]
[1673391951043,0.41640247,17423.0,17422.0,3.05958408]
[1673391952000,0.015,17423.0,17422.0,3.05958408]
[1673391952249,0.41640247,17423.0,17422.0,3.05958408]
[1673391953523,0.41640247,17423.0,17422.0,3.23130453]
[1673391954755,0.41630272,17423.0,17422.0,3.23130453]
[1673391959565,0.01490025,17423.0,17422.0,3.23130453]
[1673391960421,0.41630272,17423.0,17422.0,3.23130453]
[1673391960689,0.01490025,17423.0,17422.0,3.23130453]
[1673391962309,0.41630272,17423.0,17422.0,3.23130453]
[1673391962854,0.01490025,17423.0,17422.0,3.23130453]
[1673391963390,0.01490025,17423.0,17422.0,2.88779532]
[1673391963684,0.41630272,17423.0,17422.0,2.88779532]
[1673391963932,0.01490025,17423.0,17422.0,2.88779532]
[1673391964991,0.01490025,17423.0,17422.0,3.6551861]
[1673391965251,0.01490025,17423.0,17422.0,4.0166874]
[1673391965503,0.01490025,17423.0,17422.0,4.0251874]
[1673391966332,0.01490025,17423.0,17422.0,4.06561641]
[1673391966588,0.01490025,17423.0,17422.0,3.23566918]
[1673391966849,0.01490025,17423.0,17422.0,3.47785303]
[1673391967102,0.01490025,17423.0,17422.0,3.64265303]
[1673391967352,0.01490025,17423.0,17422.0,3.68308204]
[1673391968634,0.01490025,17423.0,17422.0,4.19878923]
[1673391968891,0.01490025,17423.0,17422.0,3.68308204]
[1673391969397,0.01490025,17423.0,17422.0,4.28608204]
[1673391969652,0.00401709,17426.0,17423.0,0.2]
[1673391969889,0.00401709,17426.0,17425.0,0.93832602]
[1673391970143,0.00401709,17426.0,17425.0,2.94527002]
[1673391970643,0.00401709,17426.0,17425.0,3.47709882]
[1673391971145,0.00401709,17426.0,17425.0,3.04736214]
[1673391971894,0.14001709,17426.0,17425.0,3.6824954]
[1673391972397,0.14001709,17426.0,17425.0,3.64430981]
[1673391972702,0.14001709,17426.0,17425.0,4.07344239]
[1673391972928,0.00401709,17426.0,17425.0,4.07044239]
[1673391973246,0.01801709,17426.0,17425.0,4.11144239]
[1673391973675,0.00401709,17426.0,17425.0,5.1108714]
[1673391973924,0.00401709,17426.0,17425.0,4.84513882]
[1673391974169,0.00265797,17427.0,17425.0,5.47860331]
[1673391974420,0.00265797,17427.0,17426.0,2.98418795]
[1673391974675,0.00265797,17427.0,17426.0,3.32723913]
[1673391974927,0.00265797,17427.0,17426.0,4.51537814]
[1673391975211,0.00265797,17427.0,17426.0,4.13189795]
[1673391975706,0.00265797,17427.0,17426.0,4.47492057]
[1673391975943,0.01665797,17427.0,17426.0,4.5149205]
[1673391976199,0.01665797,17427.0,17426.0,3.97517137]
[1673391976713,0.01665797,17427.0,17426.0,4.39848733]
[1673391977220,0.01665797,17427.0,17426.0,2.5681548]
[1673391977469,0.41806044,17427.0,17426.0,2.09725915]
[1673391977724,0.41806044,17427.0,17426.0,1.92582146]
[1673391978269,0.41806044,17427.0,17426.0,2.12582146]
[1673391978485,0.41806044,17427.0,17426.0,2.29725915]
[1673391978735,0.41806044,17427.0,17426.0,2.59725915]
[1673391983331,0.01665797,17427.0,17426.0,2.59725915]
[1673391985345,0.01665797,17427.0,17426.0,2.42582146]
[1673391985597,0.01665797,17427.0,17426.0,2.59725915]
[1673391987989,0.01665797,17427.0,17426.0,2.85442579]
[1673391988558,9.7e-07,17427.0,17426.0,4.33499789]
[1673391988822,0.00256333,17428.0,17426.0,4.33499789]
[1673391988823,0.00256333,17428.0,17426.0,4.3463087]
[1673391989083,0.00265797,17429.0,17428.0,0.603]
[1673391989346,0.00265797,17429.0,17428.0,5.3148259]
[1673391989595,0.00265797,17429.0,17428.0,5.36375491]
[1673391990120,0.00265797,17429.0,17428.0,5.53509521]
[1673391990384,0.00265797,17429.0,17428.0,5.4946662]
[1673391990634,2.00420712,17430.0,17429.0,0.79388466]
[1673391990931,2.00420712,17430.0,17429.0,3.0835724]
[1673391991162,2.00420712,17430.0,17429.0,4.44885613]
[1673391991690,2.00420712,17430.0,17429.0,3.80199974]
[1673391991931,2.00420712,17430.0,17429.0,4.32067289]
[1673391992429,2.00420712,17430.0,17429.0,4.46167289]
[1673391992919,2.00420712,17430.0,17429.0,4.20477625]
[1673391993169,2.00420712,17430.0,17429.0,4.46167289]
[1673391993712,2.00420712,17430.0,17429.0,3.94299974]
[1673391993981,2.00420712,17430.0,17429.0,4.47513172]
[1673391994245,2.00420712,17430.0,17429.0,5.05530986]
[1673391994484,1.12770412,17430.0,17429.0,5.7963472]
[1673391994742,0.00452163,17431.0,17430.0,0.803]
[1673391994972,0.00452163,17431.0,17430.0,4.53613039]
[1673391995738,0.00452163,17431.0,17430.0,4.79288099]
[1673391996496,0.00435496,17432.0,17431.0,0.2]
[1673391996743,0.00435496,17432.0,17431.0,4.28856823]
[1673391997006,0.00435496,17432.0,17431.0,4.29706823]
[1673391997510,0.00435496,17432.0,17431.0,4.90006823]
[1673391998072,0.00435496,17432.0,17431.0,4.91406823]
[1673391998582,9.6e-07,17432.0,17431.0,4.91406823]
[1673391998808,0.00506465,17433.0,17431.0,4.91406823]
[1673391999056,0.00506465,17433.0,17432.0,1.66336657]
[1673391999308,0.00506465,17433.0,17432.0,4.01562368]
[1673391999553,0.00506465,17433.0,17432.0,3.91368057]
[1673391999811,0.00506465,17433.0,17432.0,4.61653436]
[1673392000354,0.00506465,17433.0,17432.0,3.91368057]
[1673392000612,0.40140247,17434.0,17433.0,0.2]
[1673392000867,0.40140247,17434.0,17433.0,4.24878057]
[1673392001645,0.40140247,17434.0,17433.0,4.95902431]
[1673392001922,0.64408036,17434.0,17433.0,2.59128174]
[1673392002162,0.40140247,17434.0,17433.0,2.41648174]
[1673392002431,0.40140247,17434.0,17433.0,3.10048174]
[1673392002900,0.40140247,17434.0,17433.0,3.24148174]
[1673392003439,0.39140247,17434.0,17433.0,3.54148174]
[1673392003957,0.39140247,17434.0,17433.0,2.94148174]
[1673392004218,0.38640247,17434.0,17433.0,2.94148174]
[1673392005492,0.38640247,17434.0,17433.0,3.54148174]
[1673392009981,0.38640247,17434.0,17433.0,2.94148174]
[1673392020086,0.71319962,17436.0,17433.0,2.94148174]
[1673392020368,0.38640247,17434.0,17433.0,2.82008963]
[1673392020619,0.38640247,17434.0,17433.0,2.94172874]
[1673392021373,0.38640247,17434.0,17433.0,2.71672874]
[1673392022361,0.38640247,17434.0,17433.0,2.85772874]
[1673392022608,0.38640247,17434.0,17433.0,2.71672874]
[1673392023133,0.38640247,17434.0,17433.0,2.85772874]
[1673392024685,0.38640247,17434.0,17433.0,3.0288304]
[1673392026694,0.38640247,17434.0,17433.0,3.285581]
[1673392028181,0.38631004,17434.0,17433.0,3.285581]
[1673392028441,0.38631004,17434.0,17433.0,3.45715939]
[1673392028689,0.38631004,17434.0,17433.0,3.62962368]
[1673392028905,0.38631004,17434.0,17433.0,3.28607908]
[1673392030189,0.38631004,17434.0,17433.0,2.78792617]
[1673392030441,0.38631004,17434.0,17433.0,3.27514125]
[1673392030694,0.38631004,17434.0,17433.0,3.92697313]
[1673392031931,0.38631004,17434.0,17433.0,4.57713828]
[1673392033837,0.38631004,17434.0,17433.0,3.39765015]
[1673392038785,0.38631004,17434.0,17433.0,3.98615505]
[1673392039036,0.38631004,17434.0,17433.0,3.39765015]
[1673392039771,0.38631004,17434.0,17433.0,2.79765015]
[1673392042278,0.38631004,17434.0,17433.0,2.92748392]
[1673392042528,1.30386962,17434.0,17433.0,2.62119847]
[1673392042806,1.30386962,17434.0,17433.0,2.09001812]
[1673392043062,1.30386962,17434.0,17433.0,1.91806974]
[1673392043864,1.30386962,17434.0,17433.0,0.141]
[1673392044106,2.36943452,17434.0,17433.0,0.141]
[1673392044622,2.01019752,17434.0,17433.0,0.141]
[1673392044887,2.36943452,17434.0,17433.0,0.141]
[1673392045150,1.30386962,17434.0,17432.0,1.69462586]
[1673392045414,1.15326962,17434.0,17433.0,0.001]
[1673392045695,1.31786962,17434.0,17433.0,0.301]
[1673392045956,1.31786962,17434.0,17433.0,1.82017932]
[1673392046978,1.30386962,17434.0,17433.0,1.81917932]
[1673392047718,1.31786962,17434.0,17433.0,1.82017932]
[1673392049501,1.31780547,17434.0,17433.0,1.82017932]
[1673392049757,1.31780547,17434.0,17433.0,0.774624]
[1673392050844,1.31780547,17434.0,17433.0,0.574624]
[1673392052042,0.93149543,17434.0,17433.0,0.574624]
[1673392052290,1.31780547,17434.0,17433.0,0.574624]
[1673392053800,0.40031004,17434.0,17433.0,1.77019494]
[1673392054042,0.40031004,17434.0,17433.0,3.27961269]
[1673392054290,0.40031004,17434.0,17433.0,3.23917152]
[1673392055071,0.40031004,17434.0,17433.0,2.89529182]
[1673392055331,0.40031004,17434.0,17433.0,3.23870713]
[1673392058177,0.40031004,17434.0,17433.0,2.89529182]
[1673392058403,0.40031004,17434.0,17433.0,3.23870334]
[1673392062297,0.40031004,17434.0,17433.0,2.89529182]
[1673392062999,0.40031004,17434.0,17433.0,3.23870871]
[1673392069997,0.40031004,17434.0,17433.0,3.06644664]
[1673392070516,0.40031004,17434.0,17433.0,3.23870871]
[1673392070994,0.40020831,17434.0,17433.0,3.23870871]
[1673392071986,0.40020831,17434.0,17433.0,3.49629912]
[1673392072250,0.40020831,17434.0,17433.0,3.23870871]
[1673392074743,0.40020831,17434.0,17433.0,3.49633649]
[1673392074970,0.40020831,17434.0,17433.0,3.23870871]
[1673392075773,0.40020831,17434.0,17433.0,3.06650289]
[1673392075989,0.40020831,17434.0,17433.0,3.49633666]
[1673392076515,0.40020831,17434.0,17433.0,3.06650289]
[1673392078061,0.40020831,17434.0,17433.0,3.23870871]
[1673392078771,0.40020831,17434.0,17433.0,3.49635761]
[1673392079017,0.40020831,17434.0,17433.0,3.06652384]
[1673392079521,0.40020831,17434.0,17433.0,3.23870871]
[1673392081260,0.40020831,17434.0,17433.0,3.06652443]
[1673392081509,0.01389827,17434.0,17433.0,3.23870871]
[1673392081751,0.40020831,17434.0,17433.0,3.23870871]
[1673392082245,0.01389827,17434.0,17433.0,3.23870871]
[1673392082502,0.40020831,17434.0,17433.0,3.23870871]
[1673392082999,0.01389827,17434.0,17433.0,3.23870871]
[1673392083282,0.40020831,17434.0,17433.0,3.23870871]
[1673392084596,0.40020831,17434.0,17433.0,2.89529182]
[1673392084883,0.40020831,17434.0,17433.0,2.46545805]
[1673392085615,0.40020831,17434.0,17433.0,1.807485]
[1673392085880,0.40020831,17434.0,17433.0,2.42312415]
[1673392086163,0.40020831,17434.0,17433.0,2.62312415]
[1673392087500,0.40020831,17434.0,17433.0,2.70973401]
[1673392087707,0.40020831,17434.0,17433.0,3.22541802]
[1673392088967,0.40020831,17434.0,17433.0,3.81392292]
[1673392089515,0.01389827,17434.0,17433.0,5.37057275]
[1673392089798,0.01389827,17434.0,17433.0,4.58037046]
[1673392090100,0.40020831,17434.0,17433.0,3.62391929]
[1673392090399,0.40020831,17434.0,17433.0,3.02162542]
[1673392090657,0.38631004,17434.0,17433.0,3.61127399]
[1673392091179,0.38631004,17434.0,17433.0,3.91127399]
[1673392091448,0.38631004,17434.0,17433.0,3.32062542]
[1673392091730,0.38731004,17434.0,17433.0,3.45962542]
[1673392092014,0.38631004,17434.0,17433.0,3.32062542]
[1673392092265,0.001,17434.0,17433.0,3.45962542]
[1673392092516,0.38731004,17434.0,17433.0,4.05037436]
[1673392092768,0.38831004,17434.0,17433.0,4.18937436]
[1673392093032,0.38631004,17434.0,17433.0,3.91137436]
[1673392093298,0.56737612,17435.0,17433.0,3.91137436]
[1673392093528,0.38631004,17434.0,17433.0,3.55213736]
[1673392093799,0.56737612,17435.0,17434.0,0.2]
[1673392094058,0.56737612,17435.0,17434.0,2.21967412]
[1673392094296,0.38631004,17435.0,17434.0,2.21967412]
[1673392094550,0.38631004,17435.0,17434.0,2.90846932]
[1673392095287,0.38731004,17435.0,17434.0,3.04846932]
[1673392095817,0.38731004,17435.0,17434.0,2.61860926]
[1673392099182,0.38723267,17435.0,17434.0,2.61860926]
[1673392102766,0.38723267,17435.0,17434.0,3.04834472]
[1673392104061,0.001,17435.0,17434.0,3.04834472]
[1673392104314,0.38723267,17435.0,17434.0,3.04834472]
[1673392104801,0.38723267,17435.0,17434.0,2.61860926]
[1673392105052,0.38723267,17435.0,17434.0,3.04835246]
[1673392105303,0.38723267,17435.0,17434.0,2.61860926]
[1673392105562,0.38723267,17435.0,17434.0,3.04835175]
[1673392106078,0.001,17435.0,17434.0,3.04835175]
[1673392106561,0.001,17435.0,17434.0,2.61860926]
[1673392107175,0.001,17435.0,17434.0,3.04835709]
[1673392107464,0.38723267,17435.0,17434.0,3.04835709]
[1673392107714,0.001,17435.0,17434.0,3.04835709]
[1673392107961,0.38723267,17435.0,17434.0,3.04835709]
[1673392108962,0.38723267,17435.0,17434.0,2.61860926]
[1673392109720,0.38723267,17435.0,17434.0,3.04836998]
[1673392111269,0.38723267,17435.0,17434.0,2.61860926]
[1673392116504,0.38723267,17435.0,17434.0,2.94975735]
[1673392116760,0.38723267,17435.0,17434.0,2.77788004]
[1673392117296,0.55183267,17435.0,17434.0,2.40596039]
[1673392117816,0.55183267,17435.0,17434.0,1.83236939]
[1673392119098,0.55183267,17435.0,17434.0,1.57442424]
[1673392120962,0.55183267,17435.0,17434.0,1.40247326]
[1673392121167,1.09374975,17435.0,17434.0,0.14008706]
[1673392121418,1.98530024,17435.0,17434.0,0.14008706]
[1673392121679,2.34453724,17435.0,17434.0,0.14008706]
[1673392122210,1.98530024,17435.0,17434.0,0.13999553]
[1673392122700,1.44338316,17435.0,17434.0,0.13999553]
[1673392123217,1.80162016,17435.0,17433.0,1.38277583]
[1673392123463,1.6791222,17435.0,17434.0,0.001]
[1673392123712,1.46618316,17435.0,17434.0,0.001]
[1673392123955,1.80142016,17435.0,17433.0,1.38277583]
[1673392124204,0.3277,17434.0,17433.0,1.38277583]
[1673392124442,0.3277,17434.0,17433.0,1.21082485]
[1673392125484,0.3277,17434.0,17433.0,0.66020085]
[1673392125733,0.71393267,17434.0,17433.0,0.66020085]
[1673392126235,0.71393267,17434.0,17433.0,1.23382485]
[1673392127257,0.71393267,17434.0,17433.0,0.66020085]
[1673392127515,0.71393267,17434.0,17433.0,1.53382485]
[1673392128302,0.71393267,17434.0,17433.0,1.23382485]
[1673392128814,0.71393267,17434.0,17433.0,0.023]
[1673392130879,0.70893267,17434.0,17433.0,0.023]
[1673392131914,0.3227,17434.0,17433.0,0.023]
[1673392132161,0.70893267,17434.0,17433.0,0.023]
[1673392135258,0.70893267,17434.0,17433.0,0.596624]
[1673392136006,0.70893267,17434.0,17433.0,0.023]
[1673392137305,1.28629795,17434.0,17433.0,0.023]